bitfinex-derivatives/quotes_BTCF0:USTF0_20251002
["timestamp","ask_amount","ask_price","bid_price","bid_amount"]
[1759408883449,0.51154,119360.0,119350.0,0.39579]
[1759408883646,0.52904756,119360.0,119350.0,0.03499]
[1759408884353,0.52904756,119360.0,119350.0,0.04099]
[1759408884558,0.80368756,119360.0,119350.0,0.40179]
[1759408884851,0.80368756,119360.0,119350.0,0.39579]
[1759408885042,0.80364756,119360.0,119350.0,0.39579]
[1759408885645,0.80364756,119360.0,119350.0,0.40179]
[1759408888558,0.04012756,119360.0,119350.0,0.40179]
[1759408888757,0.80348756,119360.0,119350.0,0.40179]
[1759408890460,0.87142924,119360.0,119350.0,0.40179]
[1759408892963,0.10806924,119360.0,119350.0,0.40179]
[1759408893169,0.87102924,119360.0,119350.0,0.40179]
[1759408893369,0.10806924,119360.0,119350.0,0.40179]
[1759408893770,0.87094924,119360.0,119350.0,0.40179]
[1759408893972,0.87094924,119360.0,119350.0,0.39879]
[1759408895266,0.87793924,119360.0,119350.0,0.35778]
[1759408895467,0.87094924,119360.0,119350.0,0.39167147]
[1759408895973,0.87094924,119360.0,119350.0,0.39567147]
[1759408896368,1.12682318,119360.0,119350.0,0.39567147]
[1759408896774,1.13381318,119360.0,119350.0,0.38169147]
[1759408897569,1.13381318,119360.0,119350.0,0.37869147]
[1759408899269,1.15517138,119360.0,119350.0,0.37869147]
[1759408899577,0.36394318,119360.0,119350.0,0.64854541]
[1759408899769,1.12646318,119360.0,119350.0,0.64854541]
[1759408901375,1.12642318,119360.0,119350.0,0.73229321]
[1759408901768,1.12642318,119360.0,119350.0,0.64854541]
[1759408902176,0.36394318,119360.0,119350.0,0.64854541]
[1759408902375,1.12630318,119360.0,119350.0,0.64854541]
[1759408902874,1.12630318,119360.0,119350.0,0.39267147]
[1759408903880,1.12626318,119360.0,119350.0,0.39267147]
[1759408904682,0.36394318,119360.0,119350.0,0.39267147]
[1759408904974,1.12614318,119360.0,119350.0,0.39267147]
[1759408905365,1.38201712,119360.0,119350.0,0.39267147]
[1759408906272,1.41026404,119360.0,119350.0,0.35768147]
[1759408906883,1.38900712,119360.0,119350.0,0.35768147]
[1759408907077,1.41027343,119360.0,119350.0,0.35768147]
[1759408908175,1.81027343,119360.0,119350.0,0.35768147]
[1759408908576,2.17107343,119360.0,119350.0,0.004]
[1759408910676,1.40887343,119360.0,119350.0,0.004]
[1759408910886,1.80991343,119360.0,119350.0,0.03804]
[1759408911980,1.04108343,119360.0,119350.0,0.39884]
[1759408912179,1.29118649,119360.0,119350.0,0.39884]
[1759408912379,1.80293437,119360.0,119350.0,0.39884]
[1759408912973,1.04109437,119360.0,119350.0,0.39884]
[1759408913173,1.80281437,119360.0,119350.0,0.39884]
[1759408914684,0.64109437,119360.0,119350.0,0.39884]
[1759408914879,0.36394318,119360.0,119350.0,0.73846164]
[1759408915075,0.36394318,119360.0,119350.0,0.65471394]
[1759408915076,1.11192953,119360.0,119350.0,0.65471394]
[1759408915785,1.11192953,119360.0,119350.0,0.39884]
[1759408915985,1.11192953,119360.0,119350.0,0.65471394]
[1759408916185,0.09445559,119360.0,119350.0,0.65471394]
[1759408916486,1.10552953,119360.0,119350.0,0.39884]
[1759408916784,1.3826801,119360.0,119350.0,0.39884]
[1759408920084,1.3889601,119360.0,119350.0,0.39884]
[1759408920585,1.36764347,119360.0,119350.0,0.39884]
[1759408920887,0.85589559,119360.0,119350.0,0.39884]
[1759408921081,1.36764347,119360.0,119350.0,0.39884]
[1759408921780,1.36764347,119360.0,119350.0,0.03804]
[1759408922086,1.38891887,119360.0,119350.0,0.39884]
[1759408922686,1.38891887,119360.0,119350.0,0.37783]
[1759408923079,1.36764347,119360.0,119350.0,0.40077]
[1759408923275,0.60620347,119360.0,119350.0,0.40077]
[1759408923481,1.36752347,119360.0,119350.0,0.40077]
[1759408923885,1.36744347,119360.0,119350.0,0.40077]
[1759408926291,0.60620347,119360.0,119350.0,0.4845156]
[1759408926489,1.36744347,119360.0,119350.0,0.4845156]
[1759408926981,0.85569559,119360.0,119350.0,0.4845156]
[1759408927178,1.36724347,119360.0,119350.0,0.4845156]
[1759408928585,0.09445559,119360.0,119350.0,0.4845156]
[1759408928790,0.27920394,119380.0,119370.0,0.1196983]
[1759408929089,1.07194939,119380.0,119370.0,0.4804983]
[1759408929990,1.31966939,119380.0,119370.0,0.39677]
[1759408930192,1.94557333,119380.0,119360.0,0.37383]
[1759408930389,0.79095182,119370.0,119350.0,0.43354028]
[1759408930584,1.29635788,119360.0,119350.0,0.37383]
[1759408930783,0.78461,119360.0,119350.0,0.37383]
[1759408931087,1.29635788,119360.0,119350.0,0.37383]
[1759408931291,1.55223182,119360.0,119350.0,0.37383]
[1759408931593,1.55922182,119360.0,119350.0,0.3608]
[1759408932291,1.55922182,119360.0,119350.0,0.3648]
[1759408932583,1.15874182,119360.0,119350.0,0.004]
[1759408932784,1.31794266,119360.0,119350.0,0.004]
[1759408932990,1.31794266,119360.0,119350.0,0.3648]
[1759408933492,1.38483949,119360.0,119350.0,0.3648]
[1759408933886,1.38483949,119360.0,119350.0,0.3608]
[1759408934190,1.38483949,119360.0,119350.0,0.3648]
[1759408934390,1.39182949,119360.0,119350.0,0.3648]
[1759408934683,0.63034949,119360.0,119350.0,0.3648]
[1759408934887,1.39182949,119360.0,119350.0,0.3648]
[1759408935082,1.39170949,119360.0,119350.0,0.3648]
[1759408937792,1.39170949,119360.0,119330.0,0.43354028]
[1759408937793,1.98699865,119360.0,119330.0,0.43354028]
[1759408937988,0.53325788,119340.0,119330.0,0.45648028]
[1759408938188,1.29445788,119340.0,119330.0,0.45648028]
[1759408938983,1.29445788,119340.0,119330.0,0.54023908]
[1759408939189,0.06689683,119360.0,119350.0,0.1196748]
[1759408939389,0.27738394,119370.0,119360.0,0.1196677]
[1759408939597,1.03978394,119370.0,119360.0,0.39673]
[1759408941399,1.05545239,119370.0,119360.0,0.39673]
[1759408941996,1.05645239,119370.0,119360.0,0.39673]
[1759408943798,0.29405239,119370.0,119360.0,0.4804685]
[1759408944000,1.05617239,119370.0,119360.0,0.4804685]
[1759408945103,1.05613239,119370.0,119360.0,0.39673]
[1759408946391,1.31200633,119370.0,119360.0,0.39673]
[1759408946997,1.31200633,119370.0,119360.0,0.3608]
[1759408947495,1.31200633,119370.0,119360.0,0.39702]
[1759408947703,1.05617239,119370.0,119360.0,0.47719209]
[1759408947903,1.31204633,119370.0,119360.0,0.39345369]
[1759408948106,1.05617239,119370.0,119360.0,0.39345369]
[1759408948305,1.31201541,119370.0,119360.0,0.39345369]
[1759408950111,1.31201541,119370.0,119360.0,0.37017369]
[1759408950412,1.31900541,119370.0,119350.0,0.37391]
[1759408950712,0.27747848,119360.0,119350.0,0.39719]
[1759408951312,0.34417435,119360.0,119350.0,0.39719]
[1759408951700,0.34417435,119360.0,119350.0,0.40319]
[1759408952314,0.34417435,119360.0,119350.0,0.39719]
[1759408952519,0.34417435,119360.0,119350.0,0.39919]
[1759408953215,1.10605435,119360.0,119350.0,0.39919]
[1759408953418,0.34417435,119360.0,119350.0,0.4829348]
[1759408953713,1.10593435,119360.0,119350.0,0.4829348]
[1759408953918,1.10593435,119360.0,119350.0,0.39919]
[1759408954417,1.10593435,119360.0,119350.0,0.03939]
[1759408954614,0.34417435,119360.0,119350.0,0.03939]
[1759408954820,1.10585435,119360.0,119350.0,0.03939]
[1759408955323,1.10585435,119360.0,119350.0,0.03639]
[1759408955523,1.10585435,119360.0,119350.0,0.04239]
[1759408956118,0.34417435,119360.0,119350.0,0.03639]
[1759408956318,1.10585435,119360.0,119350.0,0.03639]
[1759408958324,0.34417435,119360.0,119350.0,0.1201352]
[1759408958519,1.10565435,119360.0,119350.0,0.1201352]
[1759408958717,1.10565435,119360.0,119350.0,0.4809352]
[1759408958919,1.10561435,119360.0,119350.0,0.4809352]
[1759408959826,1.10561435,119360.0,119350.0,0.39719]
[1759408960023,1.10561435,119360.0,119350.0,0.03639]
[1759408960328,1.55015235,119360.0,119350.0,0.03639]
[1759408960713,0.083745,119350.0,119340.0,0.01311]
[1759408960926,0.105372,119340.0,119330.0,0.09602028]
[1759408961121,1.12251048,119340.0,119330.0,0.03631]
[1759408961622,1.12251048,119340.0,119330.0,0.1200692]
[1759408962328,1.12251048,119340.0,119330.0,0.1220692]
[1759408962628,1.12251048,119340.0,119330.0,0.1230692]
[1759408963414,1.37836896,119340.0,119330.0,0.003]
[1759408964829,1.37836896,119340.0,119320.0,0.4575059]
[1759408965030,0.27747848,119330.0,119320.0,0.4807859]
[1759408965330,0.27747848,119330.0,119320.0,0.3608]
[1759408966025,0.27747848,119330.0,119320.0,0.006]
[1759408966732,0.27747848,119330.0,119320.0,0.03622]
[1759408967027,1.03867848,119330.0,119320.0,0.03922]
[1759408967729,1.03867848,119330.0,119320.0,0.01494]
[1759408968122,1.03867848,119330.0,119320.0,0.03622]
[1759408968323,1.03867848,119330.0,119320.0,0.01294]
[1759408968528,1.04566848,119330.0,119310.0,0.37374]
[1759408968824,0.27840848,119320.0,119310.0,0.39584]
[1759408969030,1.03960848,119320.0,119310.0,0.4796122]
[1759408969630,1.03960848,119320.0,119310.0,0.4826122]
[1759408970023,1.03960848,119320.0,119310.0,0.39884]
[1759408970626,1.03960848,119320.0,119310.0,0.39584]
[1759408971030,1.03960848,119320.0,119310.0,0.39884]
[1759408971525,1.03956848,119320.0,119310.0,0.39584]
[1759408971725,0.27840848,119320.0,119310.0,0.40084]
[1759408971930,1.03956848,119320.0,119310.0,0.04004]
[1759408972122,1.40036848,119320.0,119310.0,0.005]
[1759408972322,1.48413448,119320.0,119310.0,0.005]
[1759408974434,1.55100684,119320.0,119310.0,0.005]
[1759408975935,1.55088684,119320.0,119310.0,0.005]
[1759408976333,0.78984684,119320.0,119310.0,0.005]
[1759408976633,1.55080684,119320.0,119310.0,0.005]
[1759408979427,1.80666532,119320.0,119310.0,0.005]
[1759408980530,0.0837779,119300.0,119290.0,0.39591482]
[1759408980725,0.36218638,119300.0,119290.0,0.39591482]
[1759408980931,1.12314638,119300.0,119290.0,0.39591482]
[1759408981524,0.27840848,119300.0,119290.0,0.39591482]
[1759408981723,1.03936848,119300.0,119290.0,0.39591482]
[1759408981923,1.03936848,119300.0,119290.0,0.41191482]
[1759408982136,1.03936848,119300.0,119290.0,0.05111482]
[1759408982137,0.27840848,119300.0,119290.0,0.05111482]
[1759408982329,1.12318568,119300.0,119290.0,0.05111482]
[1759408984234,1.48398568,119300.0,119290.0,0.05111482]
[1759408985537,1.49780604,119300.0,119290.0,0.05111482]
[1759408985737,1.49784604,119300.0,119290.0,0.05111482]
[1759408986239,0.73680604,119300.0,119290.0,0.05111482]
[1759408986425,1.49784604,119300.0,119290.0,0.05111482]
[1759408987431,1.13704604,119300.0,119290.0,0.05111482]
[1759408987630,1.05326884,119300.0,119290.0,0.05111482]
[1759408988138,1.05326884,119300.0,119290.0,0.13489982]
[1759408988632,1.13704694,119300.0,119290.0,0.13489982]
[1759408988838,1.05326884,119300.0,119290.0,0.13489982]
[1759408990238,1.07482406,119300.0,119290.0,0.13489982]
[1759408990438,0.31378406,119300.0,119290.0,0.13489982]
[1759408990638,1.07482406,119300.0,119290.0,0.13489982]
[1759408991740,1.15860166,119300.0,119290.0,0.13489982]
[1759408992240,1.15864166,119300.0,119290.0,0.13489982]
[1759408992841,0.31378406,119300.0,119290.0,0.13489982]
[1759408993037,1.05330884,119300.0,119290.0,0.49569982]
[1759408993541,1.13708684,119300.0,119290.0,0.49569982]
[1759408994241,1.13708684,119300.0,119290.0,0.49569932]
[1759408994443,1.13708684,119300.0,119290.0,0.41191482]
[1759408994944,1.13708684,119300.0,119290.0,0.49569942]
[1759408996142,1.13708684,119300.0,119290.0,0.05111482]
[1759408996337,1.49788684,119300.0,119290.0,0.05111482]
[1759408997944,1.49788684,119300.0,119290.0,0.13489992]
[1759408997945,1.51949149,119300.0,119290.0,0.13489992]
[1759408998345,1.51949149,119300.0,119290.0,0.13490122]
[1759408998740,1.51949149,119300.0,119290.0,0.01607482]
[1759408999145,1.91949149,119300.0,119290.0,0.01607482]
[1759409000343,0.1057134,119280.0,119270.0,0.1185668]
[1759409000656,1.03885848,119280.0,119270.0,0.1185668]
[1759409001048,0.34322558,119280.0,119270.0,0.1185668]
[1759409001235,1.10430558,119280.0,119270.0,0.4793668]
[1759409001744,1.10430558,119280.0,119270.0,0.4993668]
[1759409002252,0.02192,119280.0,119270.0,0.8993668]
[1759409002740,0.783,119280.0,119270.0,0.8993668]
[1759409004551,0.02192,119280.0,119270.0,0.8993668]
[1759409004855,0.5614,119280.0,119270.0,0.8993668]
[1759409005751,0.02192,119280.0,119270.0,0.8993668]
[1759409006050,0.78304,119280.0,119270.0,0.8993668]
[1759409007849,0.8668335,119280.0,119270.0,0.81557]
[1759409008158,1.12269198,119280.0,119270.0,0.81557]
[1759409008752,1.12269198,119280.0,119270.0,0.41557]
[1759409008954,1.12269198,119280.0,119270.0,0.4993705]
[1759409010354,1.29548252,119280.0,119270.0,0.4993705]
[1759409011455,1.37927602,119280.0,119270.0,0.4993705]
[1759409012650,1.37927932,119280.0,119270.0,0.1385705]
[1759409012856,1.29548252,119280.0,119270.0,0.1385705]
[1759409013251,1.29548252,119280.0,119270.0,0.4993705]
[1759409013452,1.29548252,119280.0,119270.0,0.1385705]
[1759409014249,1.29479361,119280.0,119270.0,0.1385705]
[1759409015659,1.36072316,119280.0,119270.0,0.1385705]
[1759409016360,1.80532006,119280.0,119270.0,0.05477]
[1759409016659,1.44452006,119280.0,119270.0,0.1385739]
[1759409022459,1.36072316,119280.0,119270.0,0.1385739]
[1759409023460,0.59960316,119280.0,119270.0,0.1385739]
[1759409023653,0.84828064,119280.0,119270.0,0.1385739]
[1759409023855,1.36072316,119280.0,119270.0,0.1385739]
[1759409025063,0.59960316,119280.0,119270.0,0.1385739]
[1759409025564,1.44452006,119280.0,119270.0,0.1385739]
[1759409026160,1.80532006,119280.0,119270.0,0.05477]
[1759409026362,1.80532006,119280.0,119270.0,0.1385739]
[1759409027865,1.36072316,119280.0,119270.0,0.4993739]
[1759409028563,1.36072316,119280.0,119270.0,0.1385739]
[1759409030064,1.34710043,119280.0,119270.0,0.55908418]
[1759409030869,1.34710043,119280.0,119270.0,0.4993739]
[1759409031470,1.43089523,119280.0,119270.0,0.4993739]
[1759409031968,1.34710043,119280.0,119270.0,0.4993739]
[1759409033669,0.58598043,119280.0,119270.0,0.4993739]
[1759409033857,1.34706043,119280.0,119270.0,0.4993739]
[1759409035071,0.58598043,119280.0,119270.0,0.4993739]
[1759409035369,0.58598043,119280.0,119270.0,0.55908418]
[1759409035571,0.83461791,119280.0,119270.0,0.75559516]
[1759409035871,1.09083917,119280.0,119270.0,0.75559516]
[1759409036067,1.09083917,119280.0,119270.0,0.81530544]
[1759409037078,1.09083917,119280.0,119270.0,0.79530544]
[1759409037276,1.09283917,119280.0,119270.0,0.79530544]
[1759409037862,0.33175917,119280.0,119270.0,0.73559516]
[1759409038065,1.09283917,119280.0,119270.0,0.79530544]
[1759409039774,1.09283917,119280.0,119270.0,0.53908418]
[1759409039969,1.09283917,119280.0,119270.0,0.79530544]
[1759409041268,1.09283917,119280.0,119270.0,0.53908418]
[1759409042174,1.34906043,119280.0,119270.0,0.53908418]
[1759409043075,1.34906043,119280.0,119270.0,0.4793739]
[1759409043967,1.43285273,119280.0,119270.0,0.4793739]
[1759409044674,1.34906043,119280.0,119270.0,0.4793739]
[1759409045476,0.82892955,119280.0,119270.0,0.73559516]
[1759409045779,0.99554042,119280.0,119270.0,0.73559516]
[1759409046075,0.99860042,119280.0,119270.0,0.81046088]
[1759409046674,0.25928126,119290.0,119280.0,0.1200454]
[1759409046872,0.27319972,119300.0,119290.0,0.1200454]
[1759409047072,0.27319972,119300.0,119290.0,0.5406845]
[1759409047376,1.03415972,119300.0,119290.0,0.5406845]
[1759409047776,0.25937936,119300.0,119290.0,0.79690576]
[1759409047972,9.81e-05,119300.0,119290.0,0.79690576]
[1759409048176,0.7610581,119300.0,119290.0,0.79690576]
[1759409048371,0.7610581,119300.0,119290.0,1.19690576]
[1759409048677,0.0010981,119300.0,119290.0,1.19690576]
[1759409048880,0.7630581,119300.0,119290.0,1.19690576]
[1759409049876,0.7630581,119300.0,119290.0,0.9406845]
[1759409050071,0.7630581,119300.0,119290.0,1.19690576]
[1759409050775,0.0020981,119300.0,119290.0,1.19690576]
[1759409050977,0.7630181,119300.0,119290.0,1.19690576]
[1759409051867,1.01923936,119300.0,119290.0,1.19690576]
[1759409052272,1.02229936,119300.0,119290.0,0.5406845]
[1759409052472,1.27852062,119300.0,119290.0,0.5406845]
[1759409052878,1.02229936,119300.0,119290.0,0.5406845]
[1759409055382,1.02229936,119300.0,119290.0,0.79690576]
[1759409055582,1.02229936,119300.0,119290.0,0.5406845]
[1759409057983,1.02229936,119300.0,119290.0,0.79690576]
[1759409058380,1.02229936,119300.0,119290.0,0.73706666]
[1759409060982,1.02229936,119300.0,119290.0,0.4808454]
[1759409061180,1.02229936,119300.0,119290.0,0.73706666]
[1759409061384,1.36230242,119300.0,119290.0,0.4808454]
[1759409061682,1.27852062,119300.0,119290.0,0.1200488]
[1759409062984,1.76230242,119300.0,119290.0,0.1200488]
[1759409064989,1.76230242,119300.0,119290.0,0.01314]
[1759409065381,0.0868488,119290.0,119280.0,0.01314]
[1759409065587,0.96009132,119290.0,119280.0,0.01314]
[1759409066387,1.36009132,119290.0,119270.0,0.4573383]
[1759409066690,1.27622252,119280.0,119270.0,0.4797683]
[1759409067090,1.36001832,119280.0,119270.0,0.4797683]
[1759409067293,1.76001832,119280.0,119270.0,0.01274]
[1759409067791,1.76001832,119280.0,119260.0,0.5171854]
[1759409067991,0.25928126,119270.0,119260.0,0.1788154]
[1759409068193,0.25928126,119270.0,119260.0,0.1189763]
[1759409068389,0.25937624,119270.0,119260.0,0.1189763]
[1759409069495,0.25937624,119270.0,119260.0,0.1209763]
[1759409070487,0.34317684,119270.0,119260.0,0.1209763]
[1759409072288,0.35609143,119270.0,119260.0,0.1209763]
[1759409072491,1.11685143,119270.0,119260.0,0.1209763]
[1759409074091,0.35609143,119270.0,119260.0,0.1209763]
[1759409074298,1.11685143,119270.0,119260.0,0.1209763]
[1759409078799,0.35609143,119270.0,119260.0,0.1209763]
[1759409078994,1.11689143,119270.0,119260.0,0.1209763]
[1759409079395,0.86061655,119270.0,119260.0,0.1209763]
[1759409079596,1.11689143,119270.0,119260.0,0.1209763]
[1759409079797,1.03309083,119270.0,119260.0,0.1209763]
[1759409081300,1.03309083,119270.0,119260.0,0.4817763]
[1759409086895,1.03309083,119270.0,119260.0,0.1209763]
[1759409087399,0.27229083,119270.0,119260.0,0.1209763]
[1759409087703,1.03305083,119270.0,119260.0,0.1209763]
[1759409088102,1.03305083,119270.0,119260.0,0.4817763]
[1759409088900,1.11685093,119270.0,119260.0,0.4817763]
[1759409090604,1.11685093,119270.0,119260.0,0.1209763]
[1759409091512,1.11681093,119270.0,119260.0,0.1209763]
[1759409091804,0.35609093,119270.0,119260.0,0.1209763]
[1759409092008,1.11681093,119270.0,119260.0,0.1209763]
[1759409093407,0.27229083,119270.0,119260.0,0.1209763]
[1759409093809,1.03301083,119270.0,119260.0,0.1209763]
[1759409094811,1.03301083,119270.0,119260.0,0.1808154]
[1759409095507,0.27229083,119270.0,119260.0,0.1808154]
[1759409095810,1.11677063,119270.0,119260.0,0.1808154]
[1759409096304,1.11361565,119270.0,119260.0,0.1808154]
[1759409096509,1.10314717,119270.0,119260.0,0.1808154]
[1759409096812,0.34246717,119270.0,119260.0,0.1808154]
[1759409097005,1.10314717,119270.0,119260.0,0.1808154]
[1759409100317,0.34246717,119270.0,119260.0,0.1808154]
[1759409100510,1.10310717,119270.0,119260.0,0.1808154]
[1759409100911,1.01930737,119270.0,119260.0,0.5416154]
[1759409101115,0.25866737,119270.0,119260.0,0.5416154]
[1759409101317,1.01930737,119270.0,119260.0,0.4817763]
[1759409103916,1.01930737,119270.0,119260.0,0.5416154]
[1759409104919,0.25866737,119270.0,119260.0,0.5416154]
[1759409105119,1.01930737,119270.0,119260.0,0.5416154]
[1759409107012,1.01926737,119270.0,119260.0,0.5416154]
[1759409107812,0.25866737,119270.0,119260.0,0.5416154]
[1759409108319,1.01922737,119270.0,119260.0,0.5416154]
[1759409108720,1.01922737,119270.0,119260.0,0.4817763]
[1759409110712,0.25627488,119270.0,119260.0,0.4817763]
[1759409110916,0.06699531,119280.0,119270.0,0.1180707]
[1759409111117,0.8443537,119280.0,119270.0,0.4788707]
[1759409111614,0.76056,119280.0,119270.0,0.4788707]
[1759409111818,0.01203332,119280.0,119270.0,0.4788707]
[1759409112011,0.4445861,119300.0,119290.0,0.1180565]
[1759409112219,1.23824373,119300.0,119290.0,0.1180565]
[1759409112813,0.03361763,119300.0,119290.0,0.1180565]
[1759409113019,0.87791703,119300.0,119290.0,0.1180565]
[1759409113228,1.13419191,119300.0,119290.0,0.1180565]
[1759409113428,1.11276115,119300.0,119290.0,0.1180565]
[1759409113830,0.35223965,119300.0,119290.0,0.1180565]
[1759409114036,1.11275965,119300.0,119290.0,0.1180565]
[1759409114338,1.11975965,119300.0,119290.0,0.1180565]
[1759409114634,1.12675965,119300.0,119290.0,0.1180565]
[1759409114835,0.36624005,119300.0,119290.0,0.4788565]
[1759409115036,1.12672005,119300.0,119290.0,0.4788565]
[1759409115233,0.36624005,119300.0,119290.0,0.4788565]
[1759409115534,1.12672005,119300.0,119290.0,0.4788565]
[1759409116333,0.28246175,119300.0,119290.0,0.4788565]
[1759409116538,0.78666687,119300.0,119290.0,0.4788565]
[1759409117539,0.02618687,119300.0,119290.0,0.73513138]
[1759409117737,0.02618687,119300.0,119290.0,0.79497048]
[1759409117738,0.78662687,119300.0,119290.0,0.79497048]
[1759409117939,0.78662687,119300.0,119290.0,0.5386956]
[1759409118426,0.78662687,119300.0,119290.0,0.4788565]
[1759409120738,0.02618687,119300.0,119290.0,0.4788565]
[1759409120942,0.78654687,119300.0,119290.0,0.8788565]
[1759409121539,0.77436,119300.0,119290.0,0.8788565]
[1759409121732,0.77436,119300.0,119290.0,1.13513138]
[1759409122036,0.68394724,119320.0,119310.0,0.0837743]
[1759409122241,1.44430724,119320.0,119310.0,0.1178543]
[1759409122844,1.18803236,119320.0,119310.0,0.1178543]
[1759409123140,1.52807454,119320.0,119310.0,0.1178543]
[1759409123542,1.53707454,119320.0,119310.0,0.1178543]
[1759409124344,1.54914054,119320.0,119310.0,0.1178543]
[1759409128349,1.10457324,119320.0,119310.0,0.1178543]
[1759409128840,1.18834064,119320.0,119310.0,0.1178543]
[1759409134044,1.17914064,119320.0,119310.0,0.1178543]
[1759409134343,1.44196712,119320.0,119310.0,0.1178543]
[1759409134544,1.43496712,119320.0,119310.0,0.1178543]
[1759409134742,1.44196712,119320.0,119310.0,0.1178543]
[1759409135351,0.68180712,119320.0,119310.0,0.1178543]
[1759409135544,1.44192712,119320.0,119310.0,0.1178543]
[1759409138152,0.92982576,119320.0,119310.0,0.1178543]
[1759409138355,1.44192712,119320.0,119310.0,0.1178543]
[1759409142740,1.80272712,119320.0,119310.0,0.1178546]
[1759409143449,1.80260712,119320.0,119310.0,0.1178546]
[1759409143651,1.80260712,119320.0,119310.0,0.01275]
[1759409143848,0.0837749,119310.0,119300.0,0.0837819]
[1759409144053,0.70062518,119310.0,119300.0,0.0837819]
[1759409144243,0.70062518,119310.0,119300.0,0.1184319]
[1759409144750,0.61685068,119310.0,119300.0,0.1184319]
[1759409144955,1.01605068,119310.0,119300.0,0.73528258]
[1759409145152,0.004,119310.0,119300.0,0.73528258]
[1759409145452,0.768,119310.0,119300.0,1.13528258]
[1759409146554,1.02405068,119310.0,119300.0,1.13528258]
[1759409147255,0.768,119310.0,119300.0,1.13528258]
[1759409147555,1.02405068,119310.0,119300.0,1.13528258]
[1759409149757,0.768,119310.0,119300.0,1.13528258]
[1759409149958,1.02405068,119310.0,119300.0,0.8792319]
[1759409150860,1.02401068,119310.0,119300.0,1.19512168]
[1759409151957,0.26405068,119310.0,119300.0,1.19512168]
[1759409152257,1.02401068,119310.0,119300.0,1.19512168]
[1759409153457,1.10778448,119310.0,119300.0,0.939071]
[1759409153654,1.10778448,119310.0,119300.0,0.83432168]
[1759409154054,1.10778448,119310.0,119300.0,0.578271]
[1759409155062,0.8517338,119310.0,119300.0,0.578271]
[1759409155360,1.10778448,119310.0,119300.0,0.578271]
[1759409155959,1.46858448,119310.0,119300.0,0.178271]
[1759409157155,1.46858448,119310.0,119300.0,0.1184319]
[1759409158361,1.46858448,119310.0,119300.0,0.0967819]
[1759409158756,1.46858448,119310.0,119300.0,0.0837819]
[1759409161754,1.72463516,119310.0,119300.0,0.0837819]
[1759409161969,1.72463516,119310.0,119290.0,0.156492]
[1759409161970,0.0837811,119300.0,119290.0,0.156492]
[1759409162165,0.95668246,119300.0,119290.0,0.0837829]
[1759409162366,1.35668246,119300.0,119290.0,0.0837829]
[1759409163462,1.35768246,119300.0,119290.0,0.0837829]
[1759409163661,1.35868246,119300.0,119290.0,0.0837829]
[1759409164158,0.0837881,119290.0,119280.0,0.1780092]
[1759409164460,1.09967878,119290.0,119280.0,0.1780092]
[1759409165663,1.09967878,119290.0,119280.0,0.1201701]
[1759409168159,0.4445738,119310.0,119290.0,0.1180981]
[1759409168160,2.1444176,119310.0,119290.0,0.1180981]
[1759409168362,0.46595843,119310.0,119300.0,0.37414178]
[1759409168562,1.46046828,119310.0,119300.0,0.37414178]
[1759409168866,1.46046828,119310.0,119300.0,0.1180911]
[1759409169566,1.46146828,119310.0,119300.0,0.1180911]
[1759409169959,1.10066828,119310.0,119300.0,0.1180911]
[1759409170258,0.8476176,119310.0,119300.0,0.1180911]
[1759409170464,1.10766828,119310.0,119300.0,0.1180911]
[1759409170660,1.46846828,119310.0,119300.0,0.03431]
[1759409170968,0.0837811,119300.0,119290.0,0.1180934]
[1759409171168,0.95668246,119300.0,119290.0,0.1180934]
[1759409172064,0.083788,119290.0,119280.0,0.1181705]
[1759409172364,1.09967868,119290.0,119280.0,0.1780096]
[1759409172567,1.09967868,119290.0,119280.0,0.1181705]
[1759409173667,1.09967868,119290.0,119280.0,0.1201705]
[1759409174068,1.09967868,119290.0,119280.0,0.1221705]
[1759409175669,1.01589068,119290.0,119280.0,0.1221705]
[1759409175974,0.33983888,119290.0,119280.0,0.73902118]
[1759409176174,0.8435882,119290.0,119280.0,0.79886028]
[1759409176873,0.8435882,119290.0,119280.0,0.73902118]
[1759409177775,1.09963888,119290.0,119280.0,0.4829752]
[1759409177974,1.46043888,119290.0,119280.0,0.1221752]
[1759409179678,1.46043888,119290.0,119280.0,0.1006652]
[1759409183270,1.46043888,119290.0,119280.0,0.1223352]
[1759409183672,1.46043888,119290.0,119280.0,0.1006652]
[1759409184878,1.46043888,119290.0,119280.0,0.1231852]
[1759409185566,1.46043888,119290.0,119280.0,0.1006652]
[1759409186378,1.46043888,119290.0,119280.0,0.1231852]
[1759409191580,1.46043888,119290.0,119280.0,0.03939]
[1759409191777,1.71648956,119290.0,119280.0,0.004]
[1759409193778,0.59588956,119290.0,119280.0,0.004]
[1759409193983,1.46039888,119290.0,119280.0,0.03977]
[1759409194483,1.46039888,119290.0,119280.0,0.1235651]
[1759409194682,1.46039888,119290.0,119280.0,0.1010451]
[1759409194982,1.46039888,119290.0,119280.0,0.01725]
[1759409195872,1.71644956,119290.0,119280.0,0.004]
[1759409196277,1.46057408,119290.0,119280.0,0.004]
[1759409196576,1.2043482,119290.0,119280.0,0.004]
[1759409196780,1.46057408,119290.0,119280.0,0.004]
[1759409203091,1.73816261,119290.0,119280.0,0.004]
[1759409203694,1.48193673,119290.0,119280.0,0.004]
[1759409203889,1.48189673,119290.0,119280.0,0.004]
[1759409204893,1.73812261,119290.0,119280.0,0.004]
[1759409207698,1.22567085,119290.0,119280.0,0.004]
[1759409207892,1.73812261,119290.0,119280.0,0.004]
[1759409208498,2.13812261,119290.0,119280.0,0.004]
[1759409209996,0.0838025,119270.0,119260.0,0.1797027]
[1759409210196,1.09974838,119270.0,119260.0,0.1797027]
[1759409211690,1.16624661,119270.0,119260.0,0.1837027]
[1759409212292,1.09974838,119270.0,119260.0,0.1837027]
[1759409212500,1.46054838,119270.0,119260.0,0.1238636]
[1759409212701,1.46054838,119270.0,119260.0,0.1837027]
[1759409213098,1.2043225,119270.0,119260.0,0.1837027]
[1759409213298,1.2043225,119270.0,119260.0,0.1238636]
[1759409213299,1.46054838,119270.0,119260.0,0.1238636]
[1759409213596,0.70082838,119270.0,119260.0,0.0878095]
[1759409213797,1.46050838,119270.0,119260.0,0.1241695]
[1759409213993,1.46050838,119270.0,119260.0,0.1009095]
[1759409216005,0.70082838,119270.0,119260.0,0.1241695]
[1759409216503,1.52767689,119270.0,119260.0,0.1241695]
[1759409218305,1.52767689,119270.0,119260.0,0.0171]
[1759409219805,1.52767689,119270.0,119260.0,0.1009095]
[1759409220208,0.76799689,119270.0,119260.0,0.0171]
[1759409220406,1.52767689,119270.0,119260.0,0.04036]
[1759409221106,0.76799689,119270.0,119260.0,0.04036]
[1759409221307,1.52767689,119270.0,119260.0,0.124169]
[1759409222206,0.76799689,119270.0,119260.0,0.124169]
[1759409222405,1.52767689,119270.0,119260.0,0.124169]
[1759409224811,1.52767689,119270.0,119260.0,0.04036]
[1759409225707,0.76799689,119270.0,119260.0,0.04036]